[Event "Titled Tuesday Blitz July 11 Early 2023"]
[White "Grigoryan, Meri"]
[Black "slidingknight2775"]
[WhiteFideId "13300571"]
[WhiteElo "2145"]
[BlackElo "2514"]
[Result "0-1"]
[Round "3"]
[TimeControl "180+2"]
[Date "2023.07.11"]
[WhiteClock "0:00:07"]
[BlackClock "0:00:08"]
[Board "157"]

1. d4 {[%clk 0:03:00]}  Nf6 {[%clk 0:02:58]} 2. Nf3 {[%clk 0:03:00]}  d5 {[%clk 0:02:58]} 3. Bf4 {[%clk 0:02:59]}  c5 {[%clk 0:02:57]} 4. dxc5 {[%clk 0:02:56]}  Qa5+ {[%clk 0:02:45]} 5. Nc3 {[%clk 0:02:50]}  Qxc5 {[%clk 0:02:41]} 6. e3 {[%clk 0:02:35]}  a6 {[%clk 0:02:36]} 7. Be2 {[%clk 0:02:15]}  e6 {[%clk 0:02:33]} 8. O-O {[%clk 0:02:14]}  Be7 {[%clk 0:01:57]} 9. Na4 {[%clk 0:02:10]}  Qa5 {[%clk 0:01:54]} 10. c4 {[%clk 0:01:53]}  b5 {[%clk 0:01:23]} 11. cxb5 {[%clk 0:01:49]}  axb5 {[%clk 0:01:24]} 12. Qc2 {[%clk 0:01:27]}  O-O {[%clk 0:01:08]} 13. Nc5 {[%clk 0:01:26]}  Na6 {[%clk 0:00:46]} 14. Nxa6 {[%clk 0:01:18]}  Bxa6 {[%clk 0:00:47]} 15. Qc7 {[%clk 0:01:07]}  Qxc7 {[%clk 0:00:43]} 16. Bxc7 {[%clk 0:01:08]}  Rfc8 {[%clk 0:00:39]} 17. Rfc1 {[%clk 0:01:07]}  b4 {[%clk 0:00:37]} 18. Bxa6 {[%clk 0:01:03]}  Rxa6 {[%clk 0:00:38]} 19. Nd4 {[%clk 0:00:46]}  h6 {[%clk 0:00:32]} 20. h3 {[%clk 0:00:21]}  Ne4 {[%clk 0:00:26]} 21. Nb3 {[%clk 0:00:20]}  Bf6 {[%clk 0:00:24]} 22. Rc2 {[%clk 0:00:19]}  Ra7 {[%clk 0:00:17]} 23. Rac1 {[%clk 0:00:19]}  Rxa2 {[%clk 0:00:17]} 24. f3 {[%clk 0:00:19]}  Ng5 {[%clk 0:00:14]} 25. Nd4 {[%clk 0:00:19]}  Nh7 {[%clk 0:00:07]} 26. Nb5 {[%clk 0:00:15]}  Nf8 {[%clk 0:00:05]} 27. Nd6 {[%clk 0:00:15]}  Rca8 {[%clk 0:00:06]} 28. e4 {[%clk 0:00:11]}  dxe4 {[%clk 0:00:06]} 29. fxe4 {[%clk 0:00:11]}  Bd4+ {[%clk 0:00:04]} 30. Kh2 {[%clk 0:00:11]}  Ng6 {[%clk 0:00:05]} 31. Nb5 {[%clk 0:00:10]}  Be5+ {[%clk 0:00:04]} 32. Bxe5 {[%clk 0:00:09]}  Nxe5 {[%clk 0:00:05]} 33. Rc8+ {[%clk 0:00:09]}  Rxc8 {[%clk 0:00:06]} 34. Rxc8+ {[%clk 0:00:09]}  Kh7 {[%clk 0:00:07]} 35. Rc2 {[%clk 0:00:09]}  b3 {[%clk 0:00:07]} 36. Rf2 {[%clk 0:00:09]}  f6 {[%clk 0:00:06]} 37. Re2 {[%clk 0:00:09]}  Nc4 {[%clk 0:00:06]} 38. Nc3 {[%clk 0:00:09]}  Rxb2 {[%clk 0:00:07]} 39. Rxb2 {[%clk 0:00:09]}  Nxb2 {[%clk 0:00:08]} 40. Kg3 {[%clk 0:00:09]}  Nc4 {[%clk 0:00:08]} 41. Kf3 {[%clk 0:00:08]}  b2 {[%clk 0:00:08]} 42. g4 {[%clk 0:00:06]}  Nd2+ {[%clk 0:00:07]} 43. Ke3 {[%clk 0:00:06]}  b1=Q {[%clk 0:00:08]} 44. Nxb1 {[%clk 0:00:06]}  Nxb1 {[%clk 0:00:09]} 45. Kf4 {[%clk 0:00:07]}  Na3 {[%clk 0:00:08]} 46. h4 {[%clk 0:00:07]}  Nb5 {[%clk 0:00:09]} 47. g5 {[%clk 0:00:08]}  Kg6 {[%clk 0:00:08]} 48. gxh6 {[%clk 0:00:07]}  Kxh6 {[%clk 0:00:08]} 49. Kg4 {[%clk 0:00:07]}  Nd6 {[%clk 0:00:07]} 50. Kf4 {[%clk 0:00:07]}  Nxe4 {[%clk 0:00:08]} 51. Kxe4 {[%clk 0:00:07]}  g5 {[%clk 0:00:08]} 52. hxg5+ {[%clk 0:00:07]}  Kxg5 {[%clk 0:00:08]} 53. Kf3 {[%clk 0:00:07]} 0-1


[Site "https://www.chess.com"]

[Event "Titled Tuesday Blitz July 11 Early 2023"]
[White "Sailer, Mike"]
[Black "Osmak, Yuliia"]
[WhiteFideId "2012901"]
[BlackFideId "14101602"]
[WhiteElo "2138"]
[BlackElo "2513"]
[Result "0-1"]
[Round "3"]
[TimeControl "180+2"]
[Date "2023.07.11"]
[WhiteClock "0:00:00"]
[BlackClock "0:00:50"]
[Board "158"]

1. d4 {[%clk 0:02:59]}  Nf6 {[%clk 0:02:58]} 2. Nc3 {[%clk 0:02:55]}  d5 {[%clk 0:02:54]} 3. Bf4 {[%clk 0:02:55]}  c6 {[%clk 0:02:52]} 4. Nf3 {[%clk 0:02:54]}  Bf5 {[%clk 0:02:51]} 5. e3 {[%clk 0:02:53]}  e6 {[%clk 0:02:51]} 6. Ne5 {[%clk 0:02:53]}  Nbd7 {[%clk 0:02:50]} 7. g4 {[%clk 0:02:52]}  Bg6 {[%clk 0:02:43]} 8. h4 {[%clk 0:02:51]}  Qb6 {[%clk 0:02:42]} 9. Na4 {[%clk 0:02:32]}  Qa5+ {[%clk 0:02:34]} 10. c3 {[%clk 0:02:32]}  Nxe5 {[%clk 0:02:25]} 11. dxe5 {[%clk 0:02:28]}  Nxg4 {[%clk 0:02:25]} 12. h5 {[%clk 0:01:35]}  Bf5 {[%clk 0:02:19]} 13. Be2 {[%clk 0:01:35]}  Nh6 {[%clk 0:02:15]} 14. b4 {[%clk 0:01:25]}  Qc7 {[%clk 0:02:06]} 15. a3 {[%clk 0:00:51]}  Ng8 {[%clk 0:01:54]} 16. c4 {[%clk 0:00:47]}  Ne7 {[%clk 0:01:52]} 17. Rc1 {[%clk 0:00:44]}  Rd8 {[%clk 0:01:34]} 18. Qb3 {[%clk 0:00:29]}  dxc4 {[%clk 0:01:29]} 19. Bxc4 {[%clk 0:00:26]}  Nd5 {[%clk 0:01:28]} 20. Bg5 {[%clk 0:00:16]}  Be7 {[%clk 0:01:26]} 21. Bxe7 {[%clk 0:00:15]}  Qxe7 {[%clk 0:01:24]} 22. Rg1 {[%clk 0:00:11]}  O-O {[%clk 0:01:20]} 23. Nc5 {[%clk 0:00:09]}  b6 {[%clk 0:01:14]} 24. e4 {[%clk 0:00:08]}  bxc5 {[%clk 0:01:09]} 25. exf5 {[%clk 0:00:08]}  exf5 {[%clk 0:01:08]} 26. bxc5 {[%clk 0:00:09]}  Qxe5+ {[%clk 0:01:06]} 27. Kf1 {[%clk 0:00:09]}  Qf4 {[%clk 0:01:00]} 28. Re1 {[%clk 0:00:04]}  Nf6 {[%clk 0:00:52]} 29. Rg3 {[%clk 0:00:04]}  Ne4 {[%clk 0:00:50]} 30. Rg2 {[%clk 0:00:00]}  Nd2+ {[%clk 0:00:50]} 0-1


[Site "https://www.chess.com"]

[Event "Titled Tuesday Blitz July 11 Early 2023"]
[White "Marin Masis, Jose Esteban"]
[Black "Frolyanov, Dmitry"]
[WhiteFideId "6508146"]
[BlackFideId "4151976"]
[WhiteElo "2129"]
[BlackElo "2512"]
[Result "0-1"]
[Round "3"]
[TimeControl "180+2"]
[Date "2023.07.11"]
[WhiteClock "0:00:06"]
[BlackClock "0:00:04"]
[Board "159"]

1. e4 {[%clk 0:03:00]}  e5 {[%clk 0:02:59]} 2. Nf3 {[%clk 0:03:00]}  Nf6 {[%clk 0:02:59]} 3. Nxe5 {[%clk 0:03:00]}  d6 {[%clk 0:02:59]} 4. Nf3 {[%clk 0:02:59]}  Nxe4 {[%clk 0:02:59]} 5. d4 {[%clk 0:02:58]}  d5 {[%clk 0:02:59]} 6. Bd3 {[%clk 0:02:59]}  Bd6 {[%clk 0:02:59]} 7. O-O {[%clk 0:02:57]}  O-O {[%clk 0:02:59]} 8. Nc3 {[%clk 0:02:52]}  Nxc3 {[%clk 0:02:58]} 9. bxc3 {[%clk 0:02:53]}  Bg4 {[%clk 0:02:55]} 10. h3 {[%clk 0:02:47]}  Bh5 {[%clk 0:02:54]} 11. Rb1 {[%clk 0:02:32]}  Nd7 {[%clk 0:02:53]} 12. c4 {[%clk 0:02:26]}  dxc4 {[%clk 0:02:48]} 13. Bxc4 {[%clk 0:02:26]}  Nb6 {[%clk 0:02:24]} 14. Bd3 {[%clk 0:02:22]}  Bg6 {[%clk 0:01:53]} 15. Bg5 {[%clk 0:02:08]}  Qd7 {[%clk 0:01:49]} 16. c4 {[%clk 0:01:52]}  Bxd3 {[%clk 0:01:45]} 17. Qxd3 {[%clk 0:01:51]}  c6 {[%clk 0:01:44]} 18. Rfd1 {[%clk 0:01:39]}  Bc7 {[%clk 0:01:44]} 19. c5 {[%clk 0:01:31]}  Nd5 {[%clk 0:01:44]} 20. Bd2 {[%clk 0:01:09]}  h6 {[%clk 0:01:41]} 21. Rxb7 {[%clk 0:00:44]}  Bh2+ {[%clk 0:01:40]} 22. Nxh2 {[%clk 0:00:44]}  Qxb7 {[%clk 0:01:39]} 23. Ng4 {[%clk 0:00:45]}  Qd7 {[%clk 0:01:29]} 24. Bxh6 {[%clk 0:00:34]}  gxh6 {[%clk 0:01:27]} 25. Nxh6+ {[%clk 0:00:35]}  Kh8 {[%clk 0:01:17]} 26. Qg3 {[%clk 0:00:32]}  Qe6 {[%clk 0:01:08]} 27. Qh4 {[%clk 0:00:27]}  Qf6 {[%clk 0:00:44]} 28. Qh5 {[%clk 0:00:06]}  Qg6 {[%clk 0:00:41]} 29. Nxf7+ {[%clk 0:00:05]}  Kg7 {[%clk 0:00:40]} 30. Qxg6+ {[%clk 0:00:04]}  Kxg6 {[%clk 0:00:40]} 31. Ne5+ {[%clk 0:00:04]}  Kf6 {[%clk 0:00:39]} 32. Nxc6 {[%clk 0:00:05]}  Rg8 {[%clk 0:00:34]} 33. Ne5 {[%clk 0:00:06]}  Rad8 {[%clk 0:00:28]} 34. Rd3 {[%clk 0:00:06]}  Nf4 {[%clk 0:00:19]} 35. Rf3 {[%clk 0:00:06]}  Rxd4 {[%clk 0:00:19]} 36. Ng4+ {[%clk 0:00:05]}  Ke6 {[%clk 0:00:17]} 37. Re3+ {[%clk 0:00:05]}  Kf7 {[%clk 0:00:08]} 38. Nh6+ {[%clk 0:00:06]}  Kg7 {[%clk 0:00:09]} 39. Nxg8 {[%clk 0:00:07]}  Kxg8 {[%clk 0:00:10]} 40. Rg3+ {[%clk 0:00:07]}  Kf7 {[%clk 0:00:09]} 41. Re3 {[%clk 0:00:08]}  Rc4 {[%clk 0:00:09]} 42. Kh2 {[%clk 0:00:07]}  Ne6 {[%clk 0:00:08]} 43. Rf3+ {[%clk 0:00:07]}  Ke7 {[%clk 0:00:07]} 44. Rf5 {[%clk 0:00:08]}  Rc2 {[%clk 0:00:07]} 45. a4 {[%clk 0:00:08]}  Ra2 {[%clk 0:00:07]} 46. Re5 {[%clk 0:00:07]}  Rxa4 {[%clk 0:00:07]} 47. h4 {[%clk 0:00:08]}  Rxh4+ {[%clk 0:00:06]} 48. Kg3 {[%clk 0:00:08]}  Rc4 {[%clk 0:00:07]} 49. f4 {[%clk 0:00:08]}  Rxc5 {[%clk 0:00:07]} 50. Rxc5 {[%clk 0:00:07]}  Nxc5 {[%clk 0:00:07]} 51. Kf3 {[%clk 0:00:08]}  a5 {[%clk 0:00:07]} 52. Ke3 {[%clk 0:00:09]}  a4 {[%clk 0:00:07]} 53. Kd4 {[%clk 0:00:09]}  Kf6 {[%clk 0:00:07]} 54. Kc3 {[%clk 0:00:09]}  Kf5 {[%clk 0:00:07]} 55. g3 {[%clk 0:00:09]}  Ke4 {[%clk 0:00:06]} 56. Kb2 {[%clk 0:00:09]}  Kd4 {[%clk 0:00:06]} 57. Ka3 {[%clk 0:00:10]}  Kc4 {[%clk 0:00:06]} 58. g4 {[%clk 0:00:10]}  Kb5 {[%clk 0:00:05]} 59. g5 {[%clk 0:00:10]}  Ne6 {[%clk 0:00:04]} 60. g6 {[%clk 0:00:06]}  Ng7 {[%clk 0:00:04]} 61. Ka2 {[%clk 0:00:06]}  Nf5 {[%clk 0:00:04]} 62. Ka3 {[%clk 0:00:06]}  Ka5 {[%clk 0:00:04]} 63. Ka2 {[%clk 0:00:06]}  Kb4 {[%clk 0:00:05]} 64. Kb2 {[%clk 0:00:06]}  a3+ {[%clk 0:00:05]} 65. Ka2 {[%clk 0:00:07]}  Ka4 {[%clk 0:00:05]} 66. Ka1 {[%clk 0:00:07]}  Kb3 {[%clk 0:00:05]} 67. Kb1 {[%clk 0:00:08]}  a2+ {[%clk 0:00:05]} 68. Ka1 {[%clk 0:00:08]}  Nd4 {[%clk 0:00:05]} 69. g7 {[%clk 0:00:06]}  Nc2# {[%clk 0:00:04]} 0-1


[Site "https://www.chess.com"]

[Event "Titled Tuesday Blitz July 11 Early 2023"]
[White "Tarnowska, Aleksandra"]
[Black "Korelskiy, Egor"]
[WhiteFideId "1180967"]
[BlackFideId "34329064"]
[WhiteElo "2125"]
[BlackElo "2511"]
[Result "0-1"]
[Round "3"]
[TimeControl "180+2"]
[Date "2023.07.11"]
[WhiteClock "0:00:02"]
[BlackClock "0:01:38"]
[Board "161"]

1. e4 {[%clk 0:02:57]}  c5 {[%clk 0:02:59]} 2. Nf3 {[%clk 0:02:57]}  e6 {[%clk 0:02:58]} 3. c3 {[%clk 0:02:51]}  d5 {[%clk 0:02:58]} 4. exd5 {[%clk 0:02:51]}  exd5 {[%clk 0:02:59]} 5. d4 {[%clk 0:02:51]}  Nf6 {[%clk 0:02:59]} 6. Bb5+ {[%clk 0:02:49]}  Nc6 {[%clk 0:02:59]} 7. O-O {[%clk 0:02:36]}  Be7 {[%clk 0:02:59]} 8. Ne5 {[%clk 0:02:27]}  Bd7 {[%clk 0:02:58]} 9. Nxd7 {[%clk 0:02:24]}  Qxd7 {[%clk 0:02:57]} 10. Re1 {[%clk 0:01:41]}  O-O {[%clk 0:02:54]} 11. Bg5 {[%clk 0:01:30]}  cxd4 {[%clk 0:02:50]} 12. Bxc6 {[%clk 0:01:12]}  bxc6 {[%clk 0:02:46]} 13. Qxd4 {[%clk 0:01:12]}  h6 {[%clk 0:02:44]} 14. Bh4 {[%clk 0:01:08]}  Rfe8 {[%clk 0:02:43]} 15. Nd2 {[%clk 0:01:06]}  Rad8 {[%clk 0:02:39]} 16. Nf3 {[%clk 0:01:04]}  c5 {[%clk 0:02:37]} 17. Qd3 {[%clk 0:00:54]}  Qb7 {[%clk 0:02:30]} 18. Qf5 {[%clk 0:00:46]}  Qxb2 {[%clk 0:02:23]} 19. Rab1 {[%clk 0:00:27]}  Qxc3 {[%clk 0:02:21]} 20. Rec1 {[%clk 0:00:20]}  Qa3 {[%clk 0:02:13]} 21. h3 {[%clk 0:00:16]}  Ne4 {[%clk 0:02:05]} 22. Ne5 {[%clk 0:00:06]}  Bf6 {[%clk 0:01:48]} 23. Bxf6 {[%clk 0:00:06]}  Nxf6 {[%clk 0:01:48]} 24. Nc6 {[%clk 0:00:06]}  Rd6 {[%clk 0:01:46]} 25. Rd1 {[%clk 0:00:05]}  Rxc6 {[%clk 0:01:46]} 26. Rb7 {[%clk 0:00:04]}  Rce6 {[%clk 0:01:45]} 27. Rxd5 {[%clk 0:00:03]}  Qxa2 {[%clk 0:01:38]} 28. Rdd7 {[%clk 0:00:02]}  Nxd7 {[%clk 0:01:37]} 29. Rxd7 {[%clk 0:00:03]}  R6e7 {[%clk 0:01:36]} 30. Rxe7 {[%clk 0:00:02]}  Rxe7 {[%clk 0:01:37]} 31. Qc8+ {[%clk 0:00:03]}  Kh7 {[%clk 0:01:37]} 32. Qf5+ {[%clk 0:00:03]}  g6 {[%clk 0:01:37]} 33. Qf6 {[%clk 0:00:04]}  Qe6 {[%clk 0:01:37]} 34. Qf4 {[%clk 0:00:03]}  Qe1+ {[%clk 0:01:37]} 35. Kh2 {[%clk 0:00:02]}  Qe5 {[%clk 0:01:38]} 0-1


[Site "https://www.chess.com"]

[Event "Titled Tuesday Blitz July 11 Early 2023"]
[White "Garrido, Denis"]
[Black "Navyblue1"]
[WhiteFideId "601217"]
[WhiteElo "2314"]
[BlackElo "1757"]
[Result "1-0"]
[Round "3"]
[TimeControl "180+2"]
[Date "2023.07.11"]
[WhiteClock "0:01:35"]
[BlackClock "0:00:00"]
[Board "163"]

1. d4 {[%clk 0:03:00]}  Nf6 {[%clk 0:02:49]} 2. c4 {[%clk 0:03:00]}  g6 {[%clk 0:02:49]} 3. Nc3 {[%clk 0:03:00]}  Bg7 {[%clk 0:02:49]} 4. e4 {[%clk 0:03:00]}  d6 {[%clk 0:02:48]} 5. Be2 {[%clk 0:02:59]}  O-O {[%clk 0:02:44]} 6. Nf3 {[%clk 0:03:00]}  Qe8 {[%clk 0:02:44]} 7. O-O {[%clk 0:02:58]}  e5 {[%clk 0:02:44]} 8. Re1 {[%clk 0:02:54]}  Nc6 {[%clk 0:01:48]} 9. d5 {[%clk 0:02:42]}  Ne7 {[%clk 0:01:47]} 10. c5 {[%clk 0:02:34]}  Bd7 {[%clk 0:01:25]} 11. cxd6 {[%clk 0:02:33]}  cxd6 {[%clk 0:01:24]} 12. Nd2 {[%clk 0:02:28]}  Qb8 {[%clk 0:01:17]} 13. a4 {[%clk 0:02:25]}  a6 {[%clk 0:01:15]} 14. Nc4 {[%clk 0:02:17]}  Nc8 {[%clk 0:01:10]} 15. Ra3 {[%clk 0:02:08]}  b5 {[%clk 0:00:47]} 16. axb5 {[%clk 0:02:05]}  axb5 {[%clk 0:00:46]} 17. Rb3 {[%clk 0:02:01]}  Ne8 {[%clk 0:00:35]} 18. Na3 {[%clk 0:02:00]}  b4 {[%clk 0:00:23]} 19. Nc2 {[%clk 0:01:59]}  Ra4 {[%clk 0:00:18]} 20. Nxa4 {[%clk 0:01:57]}  Bxa4 {[%clk 0:00:18]} 21. Rxb4 {[%clk 0:01:55]}  Qa7 {[%clk 0:00:17]} 22. b3 {[%clk 0:01:52]}  Bd7 {[%clk 0:00:16]} 23. Be3 {[%clk 0:01:51]}  Qa5 {[%clk 0:00:16]} 24. Qa1 {[%clk 0:01:51]}  Qc7 {[%clk 0:00:13]} 25. Rc1 {[%clk 0:01:49]}  f5 {[%clk 0:00:10]} 26. f3 {[%clk 0:01:47]}  f4 {[%clk 0:00:10]} 27. Bf2 {[%clk 0:01:47]}  Ne7 {[%clk 0:00:09]} 28. Qa7 {[%clk 0:01:42]}  Qxa7 {[%clk 0:00:08]} 29. Bxa7 {[%clk 0:01:43]}  Nf6 {[%clk 0:00:07]} 30. Rb7 {[%clk 0:01:42]}  g5 {[%clk 0:00:05]} 31. Nb4 {[%clk 0:01:41]}  Ng6 {[%clk 0:00:05]} 32. Nc6 {[%clk 0:01:40]}  h5 {[%clk 0:00:04]} 33. Bb5 {[%clk 0:01:36]}  g4 {[%clk 0:00:04]} 34. Ne7+ {[%clk 0:01:36]}  Nxe7 {[%clk 0:00:04]} 35. Bxd7 {[%clk 0:01:37]}  Nxd7 {[%clk 0:00:04]} 36. Rxd7 {[%clk 0:01:37]}  Bf6 {[%clk 0:00:02]} 37. Rcc7 {[%clk 0:01:37]}  gxf3 {[%clk 0:00:01]} 38. gxf3 {[%clk 0:01:37]}  Rf7 {[%clk 0:00:00]} 39. Rxd6 {[%clk 0:01:35]} 1-0


[Site "https://www.chess.com"]

[Event "Titled Tuesday Blitz July 11 Early 2023"]
[White "Ionescu, Mihai"]
[Black "JonSnowNW1"]
[WhiteFideId "1202499"]
[WhiteElo "2579"]
[BlackElo "2423"]
[Result "0-1"]
[Round "3"]
[TimeControl "180+2"]
[Date "2023.07.11"]
[WhiteClock "0:01:07"]
[BlackClock "0:01:22"]
[Board "165"]

1. Nf3 {[%clk 0:02:59]}  d5 {[%clk 0:02:59]} 2. g3 {[%clk 0:02:58]}  g6 {[%clk 0:02:59]} 3. Bg2 {[%clk 0:02:56]}  Bg7 {[%clk 0:02:59]} 4. O-O {[%clk 0:02:55]}  c6 {[%clk 0:02:58]} 5. c4 {[%clk 0:02:54]}  dxc4 {[%clk 0:02:57]} 6. a4 {[%clk 0:02:54]}  Bf5 {[%clk 0:02:21]} 7. Na3 {[%clk 0:02:50]}  Qd5 {[%clk 0:02:15]} 8. Nh4 {[%clk 0:02:14]}  Be4 {[%clk 0:02:13]} 9. f3 {[%clk 0:02:14]}  Qc5+ {[%clk 0:02:13]} 10. Kh1 {[%clk 0:02:10]}  Bd5 {[%clk 0:02:13]} 11. Qc2 {[%clk 0:02:05]}  Na6 {[%clk 0:02:11]} 12. e4 {[%clk 0:01:40]}  Be6 {[%clk 0:02:08]} 13. f4 {[%clk 0:01:34]}  Nb4 {[%clk 0:02:08]} 14. Qd1 {[%clk 0:01:33]}  Nd3 {[%clk 0:02:06]} 15. Nc2 {[%clk 0:01:19]}  Nf2+ {[%clk 0:01:40]} 16. Rxf2 {[%clk 0:01:18]}  Qxf2 {[%clk 0:01:41]} 17. Ne3 {[%clk 0:01:16]}  Rd8 {[%clk 0:01:33]} 18. Nf3 {[%clk 0:01:13]}  Qxe3 {[%clk 0:01:28]} 19. Qc2 {[%clk 0:01:07]}  Qb3 {[%clk 0:01:22]} 0-1


[Site "https://www.chess.com"]

[Event "Titled Tuesday Blitz July 11 Early 2023"]
[White "MAHanif"]
[Black "Orlov, Georgi"]
[BlackFideId "2011271"]
[WhiteElo "2369"]
[BlackElo "2555"]
[Result "1-0"]
[Round "3"]
[TimeControl "180+2"]
[Date "2023.07.11"]
[WhiteClock "0:00:11"]
[BlackClock "0:00:02"]
[Board "168"]

1. d4 {[%clk 0:03:00]}  d5 {[%clk 0:02:58]} 2. Nf3 {[%clk 0:03:01]}  Nc6 {[%clk 0:02:57]} 3. g3 {[%clk 0:02:54]}  Bg4 {[%clk 0:02:56]} 4. Bg2 {[%clk 0:02:55]}  Qd7 {[%clk 0:02:55]} 5. c3 {[%clk 0:02:55]}  Bh3 {[%clk 0:02:51]} 6. Bxh3 {[%clk 0:02:55]}  Qxh3 {[%clk 0:02:42]} 7. Qb3 {[%clk 0:02:56]}  O-O-O {[%clk 0:02:42]} 8. Bf4 {[%clk 0:02:39]}  f6 {[%clk 0:02:40]} 9. Nbd2 {[%clk 0:02:35]}  g5 {[%clk 0:02:37]} 10. Be3 {[%clk 0:02:34]}  Nh6 {[%clk 0:02:32]} 11. O-O-O {[%clk 0:02:28]}  Nf5 {[%clk 0:02:32]} 12. Qc2 {[%clk 0:02:27]}  e6 {[%clk 0:02:30]} 13. Rdg1 {[%clk 0:02:23]}  h5 {[%clk 0:02:25]} 14. Nb3 {[%clk 0:02:17]}  g4 {[%clk 0:02:11]} 15. Nfd2 {[%clk 0:02:06]}  h4 {[%clk 0:02:09]} 16. Bf4 {[%clk 0:02:01]}  hxg3 {[%clk 0:02:07]} 17. Bxg3 {[%clk 0:02:01]}  Nxg3 {[%clk 0:01:52]} 18. Rxg3 {[%clk 0:01:51]}  Qh5 {[%clk 0:01:52]} 19. e4 {[%clk 0:01:50]}  Bd6 {[%clk 0:01:51]} 20. Rg2 {[%clk 0:01:49]}  Bf4 {[%clk 0:01:42]} 21. Kb1 {[%clk 0:01:47]}  f5 {[%clk 0:01:39]} 22. exd5 {[%clk 0:01:43]}  exd5 {[%clk 0:01:39]} 23. Nc5 {[%clk 0:01:38]}  b6 {[%clk 0:01:29]} 24. Ne6 {[%clk 0:01:37]}  Bd6 {[%clk 0:01:24]} 25. Ng7 {[%clk 0:01:29]}  Qh3 {[%clk 0:01:14]} 26. Qxf5+ {[%clk 0:01:27]}  Kb8 {[%clk 0:01:14]} 27. Qxg4 {[%clk 0:01:25]}  Qd3+ {[%clk 0:01:09]} 28. Kc1 {[%clk 0:01:20]}  Rdf8 {[%clk 0:00:55]} 29. h4 {[%clk 0:00:52]}  Bf4 {[%clk 0:00:51]} 30. Qd1 {[%clk 0:00:45]}  Rh6 {[%clk 0:00:43]} 31. Qc2 {[%clk 0:00:26]}  Qf3 {[%clk 0:00:41]} 32. Rhg1 {[%clk 0:00:24]}  Kb7 {[%clk 0:00:39]} 33. Kb1 {[%clk 0:00:22]}  Bxd2 {[%clk 0:00:36]} 34. Qxd2 {[%clk 0:00:21]}  Na5 {[%clk 0:00:34]} 35. Qxh6 {[%clk 0:00:20]}  Nc4 {[%clk 0:00:31]} 36. Qc1 {[%clk 0:00:20]}  a5 {[%clk 0:00:30]} 37. Ne6 {[%clk 0:00:19]}  Re8 {[%clk 0:00:28]} 38. Ng5 {[%clk 0:00:19]}  Qf5+ {[%clk 0:00:26]} 39. Qc2 {[%clk 0:00:18]}  Qf4 {[%clk 0:00:23]} 40. h5 {[%clk 0:00:14]}  Nd2+ {[%clk 0:00:15]} 41. Ka1 {[%clk 0:00:14]}  a4 {[%clk 0:00:14]} 42. Qxa4 {[%clk 0:00:13]}  Ra8 {[%clk 0:00:14]} 43. Qc2 {[%clk 0:00:13]}  Nc4 {[%clk 0:00:10]} 44. Ne6 {[%clk 0:00:12]}  Qd6 {[%clk 0:00:10]} 45. Nxc7 {[%clk 0:00:12]}  Ra7 {[%clk 0:00:02]} 46. Nb5 {[%clk 0:00:11]} 1-0


[Site "https://www.chess.com"]

[Event "Titled Tuesday Blitz July 11 Early 2023"]
[White "Pham, Le Thao Nguyen"]
[Black "Haitin, Ilja"]
[WhiteFideId "12401226"]
[BlackFideId "4501764"]
[WhiteElo "2521"]
[BlackElo "2368"]
[Result "1-0"]
[Round "3"]
[TimeControl "180+2"]
[Date "2023.07.11"]
[WhiteClock "0:00:12"]
[BlackClock "0:00:41"]
[Board "169"]

1. d4 {[%clk 0:02:55]}  e6 {[%clk 0:02:59]} 2. Nf3 {[%clk 0:02:52]}  b6 {[%clk 0:02:56]} 3. Bf4 {[%clk 0:02:51]}  Bb7 {[%clk 0:02:56]} 4. e3 {[%clk 0:02:51]}  f5 {[%clk 0:02:56]} 5. Nbd2 {[%clk 0:02:50]}  Nf6 {[%clk 0:02:56]} 6. h3 {[%clk 0:02:50]}  d6 {[%clk 0:02:57]} 7. a4 {[%clk 0:02:43]}  a6 {[%clk 0:02:56]} 8. Bc4 {[%clk 0:02:44]}  Nd5 {[%clk 0:02:44]} 9. Bh2 {[%clk 0:02:34]}  Be7 {[%clk 0:02:44]} 10. Qe2 {[%clk 0:02:28]}  O-O {[%clk 0:02:44]} 11. e4 {[%clk 0:02:06]}  fxe4 {[%clk 0:02:34]} 12. Nxe4 {[%clk 0:02:06]}  Kh8 {[%clk 0:02:32]} 13. O-O {[%clk 0:01:57]}  Nf4 {[%clk 0:02:29]} 14. Bxf4 {[%clk 0:01:49]}  Rxf4 {[%clk 0:02:30]} 15. Ned2 {[%clk 0:01:49]}  e5 {[%clk 0:02:21]} 16. dxe5 {[%clk 0:01:40]}  dxe5 {[%clk 0:02:17]} 17. Qxe5 {[%clk 0:01:40]}  Bd6 {[%clk 0:02:15]} 18. Qh5 {[%clk 0:01:39]}  Bxf3 {[%clk 0:02:08]} 19. Nxf3 {[%clk 0:01:36]}  Nd7 {[%clk 0:01:42]} 20. Ng5 {[%clk 0:01:11]}  h6 {[%clk 0:01:36]} 21. Nf7+ {[%clk 0:01:05]}  Rxf7 {[%clk 0:01:36]} 22. Bxf7 {[%clk 0:01:04]}  Ne5 {[%clk 0:01:27]} 23. Bd5 {[%clk 0:01:01]}  Rb8 {[%clk 0:01:22]} 24. Rad1 {[%clk 0:01:00]}  Qf6 {[%clk 0:01:21]} 25. f4 {[%clk 0:00:19]}  Nd7 {[%clk 0:01:20]} 26. Be4 {[%clk 0:00:17]}  Nc5 {[%clk 0:01:17]} 27. Qf5 {[%clk 0:00:11]}  Qxf5 {[%clk 0:01:17]} 28. Bxf5 {[%clk 0:00:11]}  Nxa4 {[%clk 0:01:18]} 29. b3 {[%clk 0:00:11]}  Nc3 {[%clk 0:01:10]} 30. Rd3 {[%clk 0:00:11]}  Ne2+ {[%clk 0:01:04]} 31. Kh1 {[%clk 0:00:10]}  Ng3+ {[%clk 0:01:04]} 32. Rxg3 {[%clk 0:00:10]}  Rf8 {[%clk 0:01:02]} 33. Bg6 {[%clk 0:00:09]}  Rf6 {[%clk 0:00:55]} 34. Rg4 {[%clk 0:00:09]}  Bf8 {[%clk 0:00:55]} 35. f5 {[%clk 0:00:09]}  a5 {[%clk 0:00:55]} 36. Re4 {[%clk 0:00:10]}  Kg8 {[%clk 0:00:55]} 37. Rd1 {[%clk 0:00:09]}  b5 {[%clk 0:00:54]} 38. Rd8 {[%clk 0:00:09]}  a4 {[%clk 0:00:52]} 39. bxa4 {[%clk 0:00:10]}  bxa4 {[%clk 0:00:52]} 40. Rxa4 {[%clk 0:00:10]}  Rc6 {[%clk 0:00:51]} 41. Raa8 {[%clk 0:00:11]}  Rf6 {[%clk 0:00:51]} 42. g4 {[%clk 0:00:11]}  c5 {[%clk 0:00:51]} 43. h4 {[%clk 0:00:11]}  c4 {[%clk 0:00:51]} 44. g5 {[%clk 0:00:11]}  hxg5 {[%clk 0:00:41]} 45. hxg5 {[%clk 0:00:12]} 1-0


[Site "https://www.chess.com"]

[Event "Titled Tuesday Blitz July 11 Early 2023"]
[White "tomobeast"]
[Black "Taboas Rodriguez, Daniel"]
[BlackFideId "2208466"]
[WhiteElo "2267"]
[BlackElo "2510"]
[Result "1-0"]
[Round "3"]
[TimeControl "180+2"]
[Date "2023.07.11"]
[WhiteClock "0:00:23"]
[BlackClock "0:00:56"]
[Board "171"]

1. e4 {[%clk 0:02:13]}  e5 {[%clk 0:02:59]} 2. Nf3 {[%clk 0:02:13]}  Nc6 {[%clk 0:03:00]} 3. Bb5 {[%clk 0:02:12]}  Nf6 {[%clk 0:03:00]} 4. O-O {[%clk 0:02:07]}  Nxe4 {[%clk 0:03:00]} 5. Re1 {[%clk 0:02:04]}  Nd6 {[%clk 0:03:00]} 6. Nxe5 {[%clk 0:02:04]}  Be7 {[%clk 0:03:01]} 7. Bf1 {[%clk 0:02:01]}  Nxe5 {[%clk 0:03:00]} 8. Rxe5 {[%clk 0:02:02]}  O-O {[%clk 0:03:01]} 9. d4 {[%clk 0:02:02]}  Bf6 {[%clk 0:03:00]} 10. Bd3 {[%clk 0:02:02]}  Ne8 {[%clk 0:02:26]} 11. Nc3 {[%clk 0:01:53]}  Bxe5 {[%clk 0:02:07]} 12. dxe5 {[%clk 0:01:54]}  f5 {[%clk 0:02:07]} 13. Bc4+ {[%clk 0:01:31]}  Kh8 {[%clk 0:02:07]} 14. Qh5 {[%clk 0:01:32]}  g6 {[%clk 0:01:50]} 15. Qh6 {[%clk 0:01:31]}  Qe7 {[%clk 0:01:50]} 16. Nd5 {[%clk 0:01:15]}  Qg7 {[%clk 0:01:50]} 17. Qh4 {[%clk 0:01:14]}  h5 {[%clk 0:01:36]} 18. Bg5 {[%clk 0:01:04]}  Kh7 {[%clk 0:01:33]} 19. Bf6 {[%clk 0:00:55]}  Nxf6 {[%clk 0:01:31]} 20. exf6 {[%clk 0:00:53]}  Qh8 {[%clk 0:01:25]} 21. Re1 {[%clk 0:00:45]}  c6 {[%clk 0:01:17]} 22. Re7+ {[%clk 0:00:40]}  Kh6 {[%clk 0:00:56]} 23. f4 {[%clk 0:00:23]} 1-0


[Site "https://www.chess.com"]